bitfinex/quotes_ETHUSD_20240717
["timestamp","ask_amount","ask_price","bid_price","bid_amount"]
[1721238890703,0.61398486,3414.9,3414.7,8.43]
[1721238890915,0.61398486,3414.9,3414.7,1.05]
[1721238891059,0.05027217,3414.8,3414.7,1.05]
[1721238891692,0.66425703,3414.8,3414.7,1.05]
[1721238892416,0.66425703,3414.8,3414.5,2.2593]
[1721238892575,0.05027217,3414.8,3414.5,2.2593]
[1721238893514,3.54225486,3415.0,3414.5,2.2593]
[1721238893870,0.04999403,3414.9,3414.5,2.2593]
[1721238895011,0.66397889,3414.9,3414.5,2.2593]
[1721238895369,0.04999403,3414.9,3414.5,2.2593]
[1721238897013,0.04999403,3414.9,3414.5,3.48552341]
[1721238897708,0.04999403,3414.9,3414.5,6.41413341]
[1721238897902,0.04999403,3414.9,3414.6,0.05856449]
[1721238898231,0.04999403,3414.9,3414.8,2.92842]
[1721238898531,0.61398486,3415.3,3414.9,2.9283]
[1721238898713,0.61398486,3415.3,3415.0,0.53846364]
[1721238898923,0.61398486,3415.3,3415.0,3.46671364]
[1721238899593,0.61398486,3415.4,3415.0,3.46671364]
[1721238900133,0.61398486,3415.5,3415.1,2.4955]
[1721238900423,0.61398486,3415.5,3415.2,0.89490721]
[1721238900646,0.61398486,3415.6,3415.2,0.89490721]
[1721238900831,0.61398486,3415.5,3415.2,0.89490721]
[1721238901128,0.61398486,3415.6,3415.3,2.92798]
[1721238901692,0.61398486,3415.6,3415.4,2.9279]
[1721238901891,0.92085583,3415.8,3415.5,0.92727872]
[1721238901892,0.61398486,3415.8,3415.5,0.92727872]
[1721238902328,0.61398486,3415.8,3415.2,0.89490721]
[1721238902527,0.61398486,3415.8,3415.2,3.82293721]
[1721238902727,0.61398486,3415.8,3415.3,2.92799]
[1721238903235,0.61398486,3415.8,3415.4,2.9279]
[1721238903836,0.61398486,3415.9,3415.4,2.9279]
[1721238904128,0.61398486,3415.9,3415.5,0.67507972]
[1721238904305,0.61398486,3415.8,3415.5,0.67507972]
[1721238904528,0.61398486,3415.9,3415.5,0.67507972]
[1721238904720,0.92085583,3416.0,3415.5,0.67507972]
[1721238904721,0.61398486,3415.8,3415.5,0.67507972]
[1721238905327,0.61398486,3415.9,3415.5,0.67507972]
[1721238905521,0.61398486,3415.8,3415.5,0.67507972]
[1721238906160,0.04836182,3415.7,3415.5,0.67507972]
[1721238906309,0.61398486,3415.9,3415.5,0.67507972]
[1721238906510,0.66236257,3415.8,3415.5,0.67507972]
[1721238907353,0.04837771,3415.8,3415.5,0.67507972]
[1721238907556,0.04837771,3415.8,3415.5,3.60289972]
[1721238907858,0.04837771,3415.8,3415.4,2.9279]
[1721238907859,0.04837771,3415.8,3415.6,3.58080997]
[1721238908021,0.04837771,3415.8,3415.7,2.3719]
[1721238908850,0.61398486,3416.1,3415.7,2.3719]
[1721238909024,0.04817403,3415.8,3415.7,2.3719]
[1721238909229,0.61398486,3416.1,3415.7,2.3719]
[1721238909230,0.61398486,3416.1,3415.7,5.2995]
[1721238909423,0.04818437,3415.8,3415.7,5.2995]
[1721238909746,0.04825988,3415.8,3415.7,6.187531]
[1721238909942,0.61398486,3416.1,3415.7,6.187531]
[1721238909943,0.61398486,3416.1,3415.7,5.2995]
[1721238910428,0.04830019,3416.0,3415.7,8.22707]
[1721238912616,0.04830019,3416.0,3415.7,5.29947]
[1721238913758,0.66228505,3416.0,3415.7,5.29947]
[1721238916428,0.04830019,3416.0,3415.7,6.34947]
[1721238916931,0.04830019,3416.0,3415.7,1.05]
[1721238917169,0.61398486,3415.9,3415.5,3.97779]
[1721238917319,0.66228505,3416.0,3415.5,3.97779]
[1721238917858,0.66228505,3416.0,3415.5,6.90555]
[1721238918172,0.66228505,3416.0,3415.7,1.05]
[1721238922663,0.61398486,3415.9,3415.7,1.05]
[1721238923021,0.04827603,3415.8,3415.7,1.05]
[1721238923697,0.61398486,3416.0,3415.7,1.05]
[1721238924292,0.66228084,3415.9,3415.7,1.05]
[1721238924501,0.04829598,3415.9,3415.7,1.05]
[1721238924666,0.66228084,3415.9,3415.7,1.05]
[1721238924987,0.04829598,3415.9,3415.7,1.05]
[1721238925492,0.66228084,3415.9,3415.7,1.05]
[1721238925788,0.04829598,3415.9,3415.7,1.05]
[1721238925967,0.66228084,3415.9,3415.7,1.05]
[1721238926386,0.04829598,3415.9,3415.7,1.05]
[1721238926563,0.66228084,3415.9,3415.7,1.05]
[1721238926901,0.04829598,3415.9,3415.7,1.05]
[1721238927275,0.66228084,3415.9,3415.7,1.05]
[1721238927661,0.66228084,3415.9,3415.2,7.38]
[1721238927662,2.92779,3415.6,3415.2,7.38]
[1721238927874,0.61398486,3415.4,3415.2,7.38]
[1721238928410,0.66227649,3415.3,3415.2,7.38]
[1721238929889,0.04829163,3415.3,3415.2,1.05]
[1721238930296,0.66227649,3415.3,3415.2,1.05]
[1721238931972,0.04829163,3415.3,3415.2,1.05]
[1721238932172,0.66227649,3415.3,3415.2,1.05]
[1721238932397,0.66227649,3415.3,3415.2,6.45258]
[1721238932711,0.04829163,3415.3,3415.2,6.45258]
[1721238933011,0.61398486,3415.5,3415.3,2.92794]
[1721238933225,0.61398486,3415.5,3415.4,3.97791]
[1721238933387,0.61398486,3415.6,3415.4,3.97791]
[1721238933707,0.61398486,3415.9,3415.6,2.92771]
[1721238933879,0.61398486,3415.8,3415.7,1.05]
[1721238934070,0.61398486,3415.9,3415.7,1.05]
[1721238934267,0.61398486,3415.9,3415.4,2.92791]
[1721238937127,0.61398486,3415.5,3415.0,7.38]
[1721238937435,0.66224431,3415.4,3415.0,7.38]
[1721238940855,0.61398486,3415.2,3415.0,7.38]
[1721238941199,0.0482488,3415.1,3415.0,7.38]
[1721238941402,0.66223366,3415.1,3415.0,7.38]
[1721238941628,0.66223366,3415.1,3414.7,5.26178]
[1721238942149,0.0482488,3415.1,3414.7,8.19021]
[1721238942336,0.66223366,3415.1,3414.7,9.04972538]
[1721238942920,0.66223366,3415.1,3414.8,2.92841]
[1721238943628,0.66223366,3415.1,3414.7,2.3333]
[1721238943830,0.66223366,3415.1,3414.7,5.26178]
[1721238944968,0.66223366,3415.1,3414.5,2.92864]
[1721238944969,0.66223366,3415.1,3414.5,2.92862]
[1721238945138,0.61398486,3415.0,3414.5,2.92862]
[1721238945523,0.66212301,3414.9,3414.5,2.92862]
[1721238946423,0.61398486,3414.8,3414.5,2.92862]
[1721238946619,0.04808202,3414.8,3414.5,2.92862]
[1721238952365,2.92817,3415.1,3414.5,2.92862]
[1721238952528,0.04816025,3415.0,3414.5,3.746777]
[1721238952732,2.92807,3415.3,3414.5,6.675407]
[1721238953035,0.04817024,3415.2,3414.5,3.746777]
[1721238953337,0.04817024,3415.2,3414.6,2.9286]
[1721238953543,0.04817024,3415.2,3414.8,2.92839]
[1721238953865,2.92775,3415.6,3414.8,2.92839]
[1721238953866,1.27673493,3415.1,3414.8,2.92839]
[1721238954070,0.04815839,3415.1,3414.8,2.92839]
[1721238954430,2.92782,3415.5,3414.9,2.2727]
[1721238954643,0.04809801,3415.0,3414.9,5.20102]
[1721238954849,2.92775,3415.6,3414.9,6.10396177]
[1721238955047,1.2766542,3415.5,3414.9,5.20102]
[1721238955336,0.61386745,3415.1,3414.9,5.20102]
[1721238955637,0.04801631,3415.0,3414.9,5.20102]
[1721238956083,0.61386745,3415.2,3414.9,5.20102]
[1721238956084,0.61386745,3415.2,3414.9,8.12934]
[1721238956366,0.04800943,3415.0,3414.9,5.20102]
[1721238956558,0.61386745,3415.2,3414.9,7.15396577]
[1721238956869,0.61386745,3415.2,3415.1,1.05]
[1721238959673,0.92080118,3415.3,3415.1,1.05]
[1721238960035,0.61390589,3415.2,3415.1,1.05]
[1721238960471,0.92080118,3415.3,3415.1,1.05]
[1721238960836,0.61390621,3415.2,3415.1,1.05]
[1721238961464,0.92080118,3415.3,3415.1,1.05]
[1721238961979,0.61392001,3415.2,3415.1,1.05]
[1721238962161,0.92080118,3415.3,3415.1,1.05]
[1721238962471,0.6139211,3415.2,3415.1,1.05]
[1721238962680,0.92080118,3415.3,3415.1,1.05]
[1721238962970,0.61396069,3415.2,3415.1,1.05]
[1721238963173,0.92080118,3415.3,3415.1,1.05]
[1721238965947,0.92080118,3415.2,3415.1,1.05]
[1721238966256,0.04815297,3415.2,3415.1,1.05]
[1721238966458,0.92080118,3415.3,3415.1,1.05]
[1721238966768,0.04813412,3415.2,3415.1,1.05]
[1721238966971,0.92080118,3415.3,3415.1,1.05]
[1721238967155,0.04812156,3415.2,3415.1,3.97816]
[1721238967550,0.92080118,3415.2,3415.1,3.97816]
[1721238967756,0.04813412,3415.2,3415.1,3.97816]
[1721238968056,0.92080118,3415.3,3415.1,3.97816]
[1721238968393,0.61406806,3415.5,3415.2,2.4722]
[1721238968556,0.61406806,3415.5,3415.4,5.40008]
[1721238968751,0.61406806,3415.7,3415.6,2.92774]
[1721238968951,0.61406806,3415.7,3415.6,3.97774]
[1721238969267,0.61406806,3415.8,3415.7,2.92765]
[1721238970490,0.92080118,3416.0,3415.8,2.92757]
[1721238970689,0.92080118,3416.0,3415.8,3.97757]
[1721238970989,0.6140051,3415.9,3415.8,3.97757]
[1721238972322,0.6140051,3415.9,3415.8,9.94617]
[1721238972493,0.6140051,3416.4,3416.3,2.92714]
[1721238972689,0.6140051,3416.4,3416.3,3.97714]
[1721238972690,0.61383941,3416.4,3416.3,3.97714]
[1721238973330,0.61383941,3416.5,3416.3,6.41158]
[1721238973492,0.61383941,3416.5,3416.4,1.05]
[1721238975334,0.61383941,3416.5,3416.4,3.97705]
[1721238975628,0.61383941,3416.6,3416.5,2.92697]
[1721238975829,0.61383941,3416.6,3416.5,3.97697]
[1721238976422,0.92080118,3416.8,3416.5,3.97697]
[1721238976423,0.61383941,3416.8,3416.5,3.97697]
[1721238976723,0.61383941,3416.8,3416.7,1.05]
[1721238977222,0.92080118,3416.9,3416.7,1.05]
[1721238977723,0.61279902,3416.8,3416.7,1.05]
[1721238978228,3.09039902,3416.9,3416.3,2.92707]
[1721238978394,3.09039902,3416.9,3416.6,1.05]
[1721238978595,0.61279902,3416.8,3416.6,1.05]
[1721238979489,2.92713,3416.4,3415.6,1.05]
[1721238979691,2.92713,3416.4,3414.8,12.25]
[1721238979692,0.61256124,3416.2,3415.3,3.97796]
[1721238979942,3.53993124,3416.1,3415.3,1.05]
[1721238980091,1.53336242,3415.9,3415.3,1.05]
[1721238980295,0.61256124,3415.7,3415.3,1.05]
[1721238981134,0.04844868,3415.6,3415.3,1.05]
[1721238982415,0.04844868,3415.6,3415.0,10.30823]
[1721238983826,0.04844868,3415.6,3415.1,2.92816]
[1721238984194,0.61256124,3415.7,3415.1,2.92816]
[1721238984501,0.04839621,3415.6,3415.1,2.92816]
[1721238988250,0.61256124,3415.7,3415.1,4.015287]
[1721238988606,0.048323,3415.6,3415.1,4.015287]
[1721238989312,0.61256124,3415.7,3415.1,4.015287]
[1721238989504,0.04830427,3415.5,3415.1,4.015287]
[1721238990045,0.04829929,3415.4,3415.1,2.92816]
[1721238990430,0.61256124,3415.7,3415.1,2.92816]
[1721238990609,0.04828685,3415.3,3415.1,2.92816]
[1721238990807,0.61256124,3415.7,3415.1,2.92816]
[1721238991242,0.04820442,3415.6,3415.1,2.92816]
[1721238992552,0.66076566,3415.6,3415.1,2.92816]
[1721238993126,0.04820442,3415.6,3415.1,2.92816]
[1721238993739,0.66076566,3415.6,3415.1,2.92816]
[1721238994451,3.58850566,3415.6,3414.9,2.4938]
[1721238994613,0.61256124,3415.5,3414.9,5.42213]
[1721238994813,0.04824316,3415.4,3414.9,5.42213]
[1721238995220,0.04824316,3415.4,3414.9,2.92833]
[1721238995928,0.04824316,3415.4,3414.7,10.30845]
[1721238996128,0.6608044,3415.4,3414.7,10.30845]
[1721238996550,0.6608044,3415.4,3414.8,2.9284]
[1721238996852,0.04824316,3415.4,3414.8,2.9284]
[1721238997147,0.6608044,3415.4,3414.8,2.9284]
[1721238997358,0.61256124,3415.3,3414.8,2.9284]
[1721238997860,0.04829529,3415.2,3414.8,2.9284]
[1721238998214,0.61256124,3415.3,3414.8,2.9284]
[1721238998420,0.04829529,3415.2,3414.8,2.9284]
[1721238998614,0.61256124,3415.3,3414.8,2.9284]
[1721238999113,0.04829529,3415.2,3414.8,2.9284]
[1721238999315,0.66085653,3415.2,3414.8,2.9284]
[1721238999543,0.66085653,3415.2,3414.6,8.23679]
[1721238999743,0.66085653,3415.2,3414.7,2.92848]
[1721239000751,0.66085653,3415.2,3414.8,2.92841]
[1721239000944,0.04829529,3415.2,3414.8,6.273074]
[1721239001549,0.04813763,3415.1,3414.8,6.273074]
[1721239001719,0.04813763,3415.1,3415.0,2.92825]
[1721239001918,0.61256124,3415.6,3415.4,2.92791]
[1721239002232,0.61256124,3415.7,3415.4,2.92791]
[1721239002435,0.61256124,3415.8,3415.4,2.92785]
[1721239002636,0.61256124,3415.9,3415.4,2.92785]
[1721239003356,0.61256124,3415.9,3415.3,4.9371]
[1721239003357,0.61256124,3415.9,3415.5,2.92781]
[1721239004222,0.61256124,3415.9,3415.8,1.05]
[1721239006067,0.61256124,3416.0,3415.8,6.3171]
[1721239006376,0.61256124,3416.1,3415.9,3.97747]
[1721239006657,0.61256124,3416.1,3416.0,2.9274]
[1721239006952,0.61256124,3416.2,3416.0,3.9774]
[1721239007152,0.61256124,3416.2,3416.1,1.05]
[1721239007355,0.61256124,3416.3,3416.1,1.05]
[1721239007554,0.61256124,3416.4,3416.2,1.05]
[1721239008260,0.61256124,3416.4,3416.2,3.9772]
[1721239009371,0.61256124,3416.4,3416.2,1.05]
[1721239009680,0.61256124,3416.5,3416.2,1.05]
[1721239010240,0.61256124,3416.5,3416.4,1.05]
[1721239010862,0.61256124,3416.5,3416.2,1.05]
[1721239010863,0.92080118,3416.5,3416.2,1.05]
[1721239011035,0.61285004,3416.4,3416.2,1.05]
[1721239011362,0.04679997,3416.3,3416.2,1.05]
[1721239014775,0.04679997,3416.3,3415.6,2.92769]
[1721239014978,0.65965001,3416.3,3416.0,1.05]
[1721239015145,0.65965001,3416.3,3415.5,2.3353]
[1721239015146,3.54007004,3416.2,3415.8,1.05]
[1721239015332,0.61285004,3416.1,3415.8,1.05]
[1721239015532,0.61285004,3416.0,3415.6,1.05]
[1721239015758,0.61285004,3415.9,3415.6,1.05]
[1721239015975,0.65958611,3415.9,3415.8,1.05]
[1721239017048,0.04673607,3415.9,3415.8,1.05]
[1721239017639,0.04671546,3415.9,3415.8,1.05]
[1721239018509,3.54008004,3416.2,3415.8,1.05]
[1721239018655,0.04671546,3415.9,3415.5,5.26312]
[1721239018835,0.04671546,3415.9,3415.8,1.05]
[1721239019853,0.61285004,3416.1,3415.8,1.05]
[1721239020054,0.61285004,3416.1,3416.0,1.05]
[1721239020682,3.54016004,3416.1,3416.0,1.05]
[1721239020889,2.92731,3416.1,3416.0,1.05]
[1721239021644,2.92754,3415.9,3415.6,1.05]
[1721239021840,3.54076881,3415.7,3415.4,1.05]
[1721239022175,3.54076881,3415.7,3415.6,1.05]
[1721239022397,3.54091966,3415.7,3415.6,1.05]
[1721239023352,2.92765,3415.7,3415.6,1.05]
[1721239023976,0.91967821,3415.8,3415.4,1.05]
[1721239023977,2.92777,3415.6,3415.4,1.05]
[1721239024180,3.5411626,3415.6,3415.4,1.05]
[1721239024390,0.6133926,3415.5,3415.4,1.05]
[1721239024599,3.84744821,3415.6,3415.4,1.05]
[1721239025097,2.92782,3415.5,3415.4,1.05]
[1721239025274,3.84749821,3415.5,3415.4,1.05]
[1721239026199,3.89257026,3415.5,3415.4,1.05]
[1721239026558,2.92793,3415.4,3415.2,1.05]
[1721239026798,2.928,3415.3,3415.2,1.05]
[1721239026955,2.928,3415.3,3414.7,7.38]
[1721239026956,0.96556355,3415.3,3414.8,1.05]
[1721239027285,0.61373273,3415.0,3414.7,7.38]
[1721239027590,0.61373273,3415.0,3414.9,1.05]
[1721239028392,0.61373273,3415.0,3414.6,2.3259]
[1721239028615,0.61373273,3414.9,3414.6,2.3259]
[1721239029194,0.61373273,3415.0,3414.6,2.3259]
[1721239030182,3.54199273,3415.0,3414.6,2.3259]
[1721239030492,0.61373273,3414.8,3414.3,4.8504]
[1721239030926,0.61373273,3414.8,3414.3,5.25725]
[1721239031426,0.61373273,3414.8,3414.3,2.3284]
[1721239033301,0.61373273,3414.8,3414.3,5.25724]
[1721239033498,0.61373273,3414.8,3414.4,0.818621]
[1721239033707,0.61373273,3414.9,3414.4,0.818621]
[1721239035030,0.61373273,3415.0,3414.5,5.20556]
[1721239035233,0.61373273,3415.0,3414.6,2.92854]
[1721239035434,0.61373273,3415.1,3414.7,2.2769]
[1721239035934,0.92053312,3415.3,3414.7,2.2769]
[1721239035935,0.61373273,3415.2,3414.7,5.2054]
[1721239037206,0.61373273,3415.2,3414.7,2.2769]
[1721239038110,0.61373273,3415.2,3414.7,3.0394456]
[1721239038636,0.61373273,3415.2,3414.7,5.9679356]
[1721239038955,0.61373273,3415.2,3414.8,2.3751]
[1721239041180,0.04492456,3415.1,3414.8,2.3751]
[1721239041315,0.61373273,3415.3,3414.8,2.3751]
[1721239041515,0.0449127,3415.0,3414.8,3.27455456]
[1721239041715,0.61373273,3415.3,3414.8,6.20297456]
[1721239041953,0.04490085,3414.9,3414.8,6.20297456]
[1721239042122,0.61373273,3415.3,3414.8,6.20297456]
[1721239042323,0.04490085,3414.9,3414.8,6.20297456]
[1721239042536,0.61373273,3415.3,3414.8,6.20297456]
[1721239042731,0.04490085,3414.9,3414.8,6.20297456]
[1721239042947,0.61373273,3415.3,3414.8,6.20297456]
[1721239043245,0.04490085,3414.9,3414.8,6.20297456]
[1721239043423,0.61373273,3415.3,3414.8,6.20297456]
[1721239043623,0.04490085,3414.9,3414.8,6.20297456]
[1721239043836,0.61373273,3415.3,3414.8,6.20297456]
[1721239044037,0.04490085,3414.9,3414.8,6.20297456]
[1721239044349,0.04490085,3414.9,3414.8,3.27455456]
[1721239044556,0.61373273,3415.3,3414.8,2.3751]
[1721239044848,0.04490085,3414.9,3414.8,2.3751]
[1721239045035,0.61373273,3415.3,3414.8,2.3751]
[1721239045239,0.04489439,3414.9,3414.8,2.3751]
[1721239045425,2.9281,3415.2,3414.8,2.3751]
[1721239045765,2.92832,3415.0,3414.4,2.3956]
[1721239045919,2.92834,3414.9,3414.4,2.3956]
[1721239046117,2.97324085,3414.9,3414.4,2.3956]
[1721239046334,3.58697358,3414.9,3414.4,2.3956]
[1721239046655,2.97324085,3414.9,3414.4,2.3956]
[1721239046827,2.92843,3414.8,3414.4,2.3956]
[1721239047229,0.04482976,3414.7,3414.4,2.3956]
[1721239047662,2.92843,3414.8,3414.4,2.3956]
[1721239048192,0.04491775,3414.7,3414.4,2.3956]
[1721239048561,2.92843,3414.8,3414.4,2.3956]
[1721239048760,2.92843,3414.8,3414.0,2.92904]
[1721239048761,0.0449059,3414.6,3414.0,10.30904]
[1721239048970,2.92851,3414.7,3414.1,2.4798]
[1721239049449,0.0448674,3414.6,3414.1,2.4798]
[1721239050287,0.0448674,3414.6,3414.5,1.051]
[1721239051249,2.92844,3414.8,3414.5,1.051]
[1721239051455,0.04482579,3414.7,3414.5,1.051]
[1721239051655,0.04482579,3414.7,3414.1,5.40882]
[1721239051656,2.92851,3414.7,3414.1,2.4798]
[1721239051888,2.92851,3414.7,3414.2,1.051]
[1721239052086,0.04471952,3414.6,3414.4,1.051]
[1721239052272,0.04471952,3414.6,3414.1,2.4798]
[1721239052273,0.04471952,3414.6,3414.5,1.051]
[1721239052479,2.92851,3414.7,3414.5,1.051]
[1721239052791,0.04471952,3414.6,3414.5,1.051]
[1721239053370,2.92843,3414.8,3414.5,1.051]
[1721239053570,0.04471952,3414.6,3414.5,1.051]
[1721239054395,3.54216273,3414.8,3414.5,1.051]
[1721239054698,2.92843,3414.8,3414.5,1.051]
[1721239055069,0.04473137,3414.7,3414.6,2.2947]
[1721239055388,0.61373273,3414.9,3414.6,2.2947]
[1721239055991,0.04473637,3414.8,3414.6,2.2947]
[1721239056502,0.6584691,3414.8,3414.6,2.2947]
[1721239056799,0.04473637,3414.8,3414.6,2.2947]
[1721239057271,0.6584691,3414.8,3414.6,2.2947]
[1721239057886,0.6584691,3414.8,3414.5,1.051]
[1721239058713,0.04473637,3414.8,3414.5,1.051]
[1721239059398,0.6584691,3414.8,3414.5,1.051]
[1721239061295,0.6584691,3414.8,3414.7,1.051]
[1721239062901,0.65817236,3414.8,3414.7,1.051]
[1721239063398,0.04473637,3414.8,3414.7,1.051]
[1721239064871,0.96526949,3414.8,3414.7,3.4144]
[1721239065966,0.96526949,3414.8,3414.7,1.051]
[1721239066310,1.32159602,3414.8,3414.5,1.051]
[1721239066608,0.61400403,3414.6,3414.5,1.051]
[1721239066964,0.65869467,3414.6,3414.5,1.051]
[1721239067514,0.04469064,3414.6,3414.5,1.051]
[1721239069064,0.96569669,3414.6,3414.5,1.051]
[1721239070103,0.04469064,3414.6,3414.5,1.051]
[1721239070278,0.96569669,3414.6,3414.2,2.2576]
[1721239070482,0.61458009,3414.4,3414.2,2.2576]
[1721239070697,0.65923515,3414.3,3414.2,2.2576]
[1721239070915,0.65923515,3414.3,3414.2,3.3086]
[1721239071222,0.04465506,3414.3,3414.0,2.92905]
[1721239071508,0.61468096,3414.2,3414.0,2.92905]
[1721239071804,0.61468096,3414.2,3414.1,1.051]
[1721239072311,0.61468096,3414.2,3413.9,2.92917]
[1721239072516,0.92100605,3414.3,3414.1,1.051]
[1721239073092,0.92100605,3414.2,3414.1,1.051]
[1721239075140,0.92100605,3414.2,3413.5,5.18931]
[1721239075287,0.61471413,3414.1,3413.9,1.051]
[1721239075685,0.61471413,3414.0,3413.9,1.051]
[1721239077223,3.85009605,3414.1,3413.5,2.2598]
[1721239077439,3.85011605,3414.0,3413.7,1.051]
[1721239077632,0.61469117,3413.8,3413.7,1.051]
[1721239078439,3.85011605,3414.0,3413.7,1.051]
[1721239078440,0.61469117,3413.9,3413.7,1.051]
[1721239078596,0.61469117,3413.9,3413.5,1.051]
[1721239078800,0.61469117,3413.7,3413.5,1.051]
[1721239079301,0.61469117,3413.6,3413.5,1.051]
[1721239079531,0.92100605,3413.6,3413.5,1.051]
[1721239080313,0.92100605,3413.7,3413.5,1.051]
[1721239080522,0.92100605,3413.7,3413.6,1.051]
[1721239080718,1.32959694,3413.8,3413.6,1.051]
[1721239080922,0.10186203,3413.7,3413.6,1.051]
[1721239081097,1.32959694,3413.8,3413.6,1.051]
[1721239081301,0.92143952,3413.7,3413.6,1.051]
[1721239082004,0.92143952,3413.7,3413.4,1.051]
[1721239082247,0.61429445,3413.5,3413.4,1.051]
[1721239084413,0.61429445,3413.5,3413.4,3.3748]
[1721239084630,0.61429445,3413.5,3413.4,4.032126]
[1721239085432,0.61429445,3413.6,3413.4,4.032126]
[1721239085647,0.61429445,3413.6,3413.5,1.051]
[1721239086226,0.65859256,3413.6,3413.5,1.051]
[1721239091345,0.04429811,3413.6,3413.5,1.051]
[1721239092766,0.04429811,3413.6,3413.5,9.863828]
[1721239092965,0.92143952,3414.0,3413.7,2.92934]
[1721239092966,0.61429445,3413.9,3413.7,2.92934]
[1721239093132,0.61429445,3414.1,3413.7,6.90964]
[1721239093331,0.61429445,3414.2,3413.9,1.051]
[1721239093672,0.61429445,3414.2,3414.1,1.051]
[1721239094355,0.92143952,3414.3,3414.1,1.051]
[1721239098963,0.61357214,3414.2,3414.1,1.051]
[1721239101135,0.65800773,3414.2,3414.1,1.051]
[1721239101956,0.04443559,3414.2,3414.1,1.051]
[1721239102477,0.92143952,3414.3,3414.1,1.051]
[1721239102682,0.04445898,3414.2,3414.1,1.051]
[1721239103071,0.92143952,3414.3,3414.1,1.051]
[1721239103378,0.04446715,3414.2,3414.1,1.051]
[1721239103761,0.61365774,3414.2,3414.1,1.051]
[1721239103958,0.65812489,3414.2,3414.1,1.051]
[1721239104283,0.04446715,3414.2,3414.1,1.051]
[1721239104472,0.6581448,3414.2,3414.1,1.051]
[1721239104673,0.61367765,3414.2,3414.1,1.051]
[1721239104973,0.65815263,3414.2,3414.1,1.051]
[1721239105147,0.04447663,3414.2,3414.1,1.051]
[1721239105348,0.96591615,3414.2,3414.1,1.051]
[1721239105582,0.92143952,3414.2,3414.1,1.051]
[1721239105783,0.04450553,3414.2,3414.1,1.051]
[1721239106079,0.92143952,3414.2,3414.1,1.051]
[1721239106271,0.96594505,3414.2,3414.1,1.051]
[1721239106660,0.96594505,3414.2,3413.9,3.449]
[1721239106855,0.61376996,3414.0,3413.9,3.449]
[1721239107277,0.65825176,3414.0,3413.9,3.449]
[1721239107484,0.65825176,3414.0,3413.9,1.051]
[1721239108765,0.0444818,3414.0,3413.9,1.051]
[1721239109266,0.65835532,3414.0,3413.9,1.051]
[1721239110000,0.0444818,3414.0,3413.9,1.051]
[1721239112359,0.65857849,3414.0,3413.9,1.051]
[1721239113063,0.0444818,3414.0,3413.9,1.051]
[1721239114566,0.0444818,3414.0,3413.9,3.3487]
[1721239115885,0.65880024,3414.0,3413.9,3.3487]
[1721239116083,0.65880024,3414.0,3413.9,7.198626]
[1721239116084,0.0444818,3414.0,3413.9,7.198626]
[1721239116683,0.61431844,3414.3,3414.1,2.92902]
[1721239116981,0.61431844,3414.3,3414.1,3.98002]
[1721239117175,0.61431844,3414.2,3414.1,3.98002]
[1721239119276,0.61431844,3414.2,3414.1,1.051]
[1721239119577,0.92143952,3414.3,3414.1,1.051]
[1721239119969,6.14944952,3414.2,3413.6,1.051]
[1721239120169,0.61440494,3414.0,3413.6,1.051]
[1721239120386,0.61440494,3413.7,3413.6,1.051]
[1721239122086,0.61440494,3413.7,3413.6,3.4013]
[1721239122309,0.61440494,3413.8,3413.6,4.327337]
[1721239122516,0.61440494,3413.8,3413.7,1.051]
[1721239122734,0.92143952,3413.9,3413.7,1.051]
[1721239123141,0.92143952,3413.9,3413.7,3.98036]
[1721239123424,0.61452616,3413.8,3413.7,3.98036]
[1721239124708,0.61452616,3413.8,3413.7,4.906378]
[1721239125428,0.61452616,3413.8,3413.7,1.051]
[1721239126706,0.92143952,3413.9,3413.7,3.98037]
[1721239128797,0.92143952,3413.9,3413.7,1.051]
[1721239129729,0.92143952,3413.8,3413.7,1.051]
[1721239130230,0.92143952,3413.8,3413.2,2.4478]
[1721239130399,0.61472247,3413.6,3413.5,1.051]
[1721239130731,0.9220837,3413.6,3413.5,1.051]
[1721239131041,0.96535686,3413.6,3413.5,1.051]
[1721239131798,0.04327316,3413.6,3413.5,3.3226]
[1721239132540,0.96535686,3413.6,3413.5,1.051]
[1721239132930,0.04327316,3413.6,3413.5,1.051]
[1721239134324,0.65810944,3413.6,3413.5,1.449054]
[1721239134529,0.65810944,3413.6,3413.5,4.378594]
[1721239135532,0.65810944,3413.6,3413.5,1.051]
[1721239136049,1.93524084,3413.6,3413.5,1.051]
[1721239136216,1.32041994,3413.6,3413.5,1.051]
[1721239136549,2.24250364,3413.6,3413.5,1.051]
[1721239137043,2.24250364,3413.6,3413.4,2.92961]
[1721239137233,1.27100807,3413.6,3413.5,1.051]
[1721239137541,2.03203133,3413.6,3413.5,1.051]
[1721239138313,3.31069466,3413.6,3413.5,1.051]
[1721239139135,2.08295975,3413.6,3413.5,1.051]
[1721239139338,1.78536238,3413.6,3413.5,1.051]
[1721239139524,3.34871296,3413.6,3413.5,1.051]
[1721239139724,3.86306727,3413.6,3413.5,1.051]
[1721239141753,3.86300165,3413.6,3413.5,1.051]
[1721239142126,1.78536238,3413.6,3413.5,1.051]
[1721239142451,3.34864729,3413.6,3413.5,1.742036]
[1721239142657,3.8630016,3413.6,3413.5,1.051]
[1721239142826,2.63526669,3413.6,3413.5,1.051]
[1721239143022,3.8630016,3413.6,3413.5,1.051]
[1721239143251,3.86301819,3413.6,3413.5,1.051]
[1721239143754,2.63528328,3413.6,3413.1,5.37312]
[1721239144051,0.04327316,3413.6,3413.5,1.051]
[1721239144218,2.03203734,3413.6,3413.5,1.051]
[1721239144423,2.83588076,3413.6,3413.5,1.051]
[1721239144938,2.83586289,3413.6,3413.5,1.051]
[1721239145757,4.06583162,3413.6,3413.5,1.051]
[1721239146056,4.06583162,3413.6,3413.5,3.3901]
[1721239146376,1.67729842,3413.6,3413.5,6.717719]
[1721239147556,1.3697959,3413.6,3413.5,9.647259]
[1721239148078,0.04327316,3413.6,3413.5,9.647259]